bitfinex-derivatives/quotes_SOLF0:USTF0_20260220
["timestamp","ask_amount","ask_price","bid_price","bid_amount"]
[1771587698335,4.89237461,83.747,83.71,4.84990102]
[1771587699742,4.89237461,83.747,83.711,15.60700102]
[1771587701646,3.08170314,83.75,83.711,15.60700102]
[1771587701647,3.08170314,83.75,83.712,4.84990102]
[1771587702345,4.94897615,83.749,83.712,4.84990102]
[1771587703641,4.94897615,83.739,83.69,3.08170314]
[1771587703843,8.03067929,83.73,83.686,4.84990102]
[1771587704247,3.08170314,83.74,83.691,4.84990102]
[1771587705642,3.08170314,83.74,83.702,10.7583]
[1771587707147,4.94897615,83.739,83.702,10.7583]
[1771587708852,4.94897615,83.729,83.692,10.7596]
[1771587711450,3.08170314,83.71,83.677,4.84990102]
[1771587712053,4.94897615,83.719,83.677,4.84990102]
[1771587712650,4.94897615,83.719,83.679,10.7612]
[1771587713052,3.08170314,83.72,83.68,4.84990102]
[1771587713253,3.08170314,83.72,83.681,4.84990102]
[1771587713449,3.08170314,83.72,83.683,4.84990102]
[1771587713957,10.7552,83.727,83.683,4.84990102]
[1771587714152,4.94897615,83.731,83.691,4.84990102]
[1771587714351,4.94897615,83.731,83.651,21.5297]
[1771587714352,4.94897615,83.744,83.701,4.84990102]
[1771587715752,15.70197615,83.744,83.703,4.84990102]
[1771587716354,3.08170314,83.73,83.671,4.84990102]
[1771587716551,8.03067929,83.72,83.681,4.84990102]
[1771587716754,21.4998,83.768,83.681,4.84990102]
[1771587716755,3.08170314,83.73,83.681,4.84990102]
[1771587716949,3.08170314,83.73,83.691,4.84990102]
[1771587717357,3.08170314,83.73,83.692,15.60940102]
[1771587718159,4.94897615,83.732,83.693,4.84990102]
[1771587718956,3.08170314,83.74,83.701,4.84990102]
[1771587720766,3.08170314,83.74,83.702,10.7582]
[1771587721064,3.08170314,83.74,83.703,4.84990102]
[1771587721565,4.94897615,83.746,83.703,4.84990102]
[1771587722063,4.94897615,83.746,83.706,4.84990102]
[1771587722863,4.94897615,83.746,83.708,10.7574]
[1771587723056,10.7528,83.746,83.693,4.84990102]
[1771587723365,4.94897615,83.739,83.693,4.84990102]
[1771587723659,3.08170314,83.73,83.693,4.84990102]
[1771587727460,4.86308629,83.703,83.664,10.7631]
[1771587727660,3.08170314,83.7,83.655,5.07899822]
[1771587727862,3.08519849,83.7,83.655,5.07899822]
[1771587728461,4.86308629,83.703,83.655,5.07899822]
[1771587728769,3.08519849,83.7,83.663,10.7632]
[1771587731162,3.08519849,83.7,83.663,15.84219822]
[1771587731369,15.61958629,83.717,83.67,3.08519849]
[1771587731565,15.61958629,83.717,83.671,5.07899822]
[1771587732471,10.7569,83.714,83.671,5.07899822]
[1771587732668,4.86308629,83.709,83.653,5.07899822]
[1771587732970,4.86308629,83.709,83.661,5.07899822]
[1771587733364,4.86308629,83.709,83.664,10.7631]
[1771587734267,4.86308629,83.709,83.667,10.7628]
[1771587736875,4.86308629,83.709,83.668,5.07899822]
[1771587737174,4.86308629,83.709,83.669,10.7625]
[1771587737567,4.86308629,83.709,83.668,5.07899822]
[1771587740171,3.08519849,83.7,83.668,5.07899822]
[1771587740678,3.08519849,83.7,83.668,15.84159822]
[1771587741071,4.86308629,83.709,83.668,15.84159822]
[1771587742479,4.86308629,83.709,83.603,29.75413242]
[1771587742480,4.86308629,83.699,83.657,10.764]
[1771587743175,4.86308629,83.685,83.641,10.7661]
[1771587743482,3.08519849,83.68,83.642,5.07899822]
[1771587743874,7.94828478,83.68,83.642,5.07899822]
[1771587744078,4.86308629,83.679,83.642,5.07899822]
[1771587745179,3.08519849,83.69,83.645,5.07899822]
[1771587746368,3.08519849,83.69,83.651,5.07899822]
[1771587748379,4.86308629,83.692,83.651,5.07899822]
[1771587748574,3.08519849,83.69,83.651,5.07899822]
[1771587750176,4.86308629,83.692,83.651,5.07899822]
[1771587750777,4.86308629,83.704,83.66,3.08519849]
[1771587751077,8.71729166,83.725,83.601,21.5426]
[1771587751078,4.86308629,83.717,83.671,5.07899822]
[1771587752476,3.08519849,83.72,83.678,5.07899822]
[1771587752675,43.50257785,83.771,83.644,21.5314]
[1771587752676,3.08519849,83.73,83.681,5.07899822]
[1771587752876,3.08519849,83.73,83.691,5.07899822]
[1771587754875,10.7549,83.729,83.691,5.07899822]
[1771587757182,3.08519849,83.73,83.692,10.7595]
[1771587757791,3.08519849,83.73,83.644,21.5314]
[1771587757792,3.08519849,83.74,83.7,3.08519849]
[1771587757984,3.08519849,83.74,83.701,4.82214142]
[1771587758386,7.87002828,83.74,83.701,4.82214142]
[1771587759576,4.78482979,83.74,83.701,4.82214142]
[1771587759779,4.78482979,83.74,83.702,4.82214142]
[1771587761282,3.08519849,83.74,83.7,3.08519849]
[1771587761481,4.78482979,83.729,83.683,4.82214142]
[1771587761681,3.08519849,83.72,83.683,4.82214142]
[1771587762677,3.08519849,83.72,83.683,15.58284142]
[1771587762881,3.08519849,83.72,83.684,4.82214142]
[1771587764585,13.84129849,83.72,83.684,4.82214142]
[1771587764891,7.87002828,83.72,83.684,4.82214142]
[1771587765785,18.62602828,83.72,83.684,4.82214142]
[1771587768792,10.7563,83.718,83.684,4.82214142]
[1771587768992,4.78482979,83.717,83.684,4.82214142]
[1771587771391,10.7567,83.715,83.684,4.82214142]
[1771587771600,4.78482979,83.709,83.673,4.82214142]
[1771587771783,3.08519849,83.7,83.663,10.7632]
[1771587772085,7.87002828,83.7,83.663,10.7632]
[1771587772293,3.08519849,83.69,83.651,4.82214142]
[1771587773089,3.08519849,83.69,83.654,4.82214142]
[1771587773295,3.08519849,83.71,83.661,4.82214142]
[1771587773686,10.7574,83.709,83.669,4.82214142]
[1771587775394,10.7583,83.703,83.669,4.82214142]
[1771587775594,3.08519849,83.7,83.669,4.82214142]
[1771587775790,3.08519849,83.71,83.669,4.82214142]
[1771587776789,3.08519849,83.72,83.671,4.82214142]
[1771587777492,10.7562,83.719,83.674,4.82214142]
[1771587777995,3.08519849,83.71,83.674,4.82214142]
[1771587778798,4.78482979,83.709,83.661,4.82214142]
[1771587779695,10.7577,83.707,83.663,4.82214142]
[1771587780304,3.08519849,83.71,83.63,62.0]
[1771587780305,4.78482979,83.692,83.639,4.82214142]
[1771587780594,3.08519849,83.7,83.59,204.72445749]
[1771587780595,7.87002828,83.7,83.651,4.82214142]
[1771587781000,7.87002828,83.7,83.65,3.08519849]
[1771587781001,7.87002828,83.7,83.661,4.82214142]
[1771587782098,10.7598,83.691,83.661,4.82214142]
[1771587782300,4.78482979,83.699,83.639,4.82214142]
[1771587782506,7.87002828,83.69,83.641,4.82214142]
[1771587782901,4.78482979,83.69,83.641,4.82214142]
[1771587783101,4.78482979,83.69,83.645,4.82214142]
[1771587783304,4.78482979,83.69,83.65,3.08519849]
[1771587783599,4.78482979,83.69,83.651,4.82214142]
[1771587783800,10.7596,83.693,83.653,4.82214142]
[1771587784706,10.7596,83.693,83.654,10.7644]
[1771587784906,10.7596,83.693,83.655,4.92538192]
[1771587785204,15.54312979,83.702,83.661,4.92538192]
[1771587792502,5.01979051,83.679,83.643,4.76546223]
[1771587793109,21.5149,83.709,83.621,4.76546223]
[1771587793110,3.08472215,83.66,83.621,4.76546223]
[1771587794610,5.01979051,83.659,83.621,4.76546223]
[1771587794817,3.08472215,83.65,83.609,4.76546223]
[1771587795113,5.01979051,83.659,83.611,4.76546223]
[1771587796717,5.01979051,83.658,83.611,4.76546223]
[1771587796919,3.08472215,83.65,83.611,4.76546223]
[1771587797321,10.7654,83.647,83.611,4.76546223]
[1771587797618,5.01979051,83.649,83.611,4.76546223]
[1771587799319,5.01979051,83.639,83.599,4.76546223]
[1771587800025,8.71729166,83.698,83.541,16.15379204]
[1771587800026,8.10451266,83.61,83.564,4.76546223]
[1771587800220,3.08472215,83.6,83.564,4.76546223]
[1771587800814,3.08472215,83.59,83.55,4.76546223]
[1771587801517,3.08472215,83.59,83.55,7.85018438]
[1771587801821,3.08472215,83.59,83.55,4.76546223]
[1771587802215,5.01979051,83.599,83.55,4.76546223]
[1771587802422,3.08472215,83.59,83.55,4.76546223]
[1771587804025,5.01979051,83.599,83.554,10.7773]
[1771587804228,5.01979051,83.612,83.561,4.76546223]
[1771587804521,3.08472215,83.61,83.561,4.76546223]
[1771587804916,3.08472215,83.62,83.571,4.76546223]
[1771587805129,3.08472215,83.62,83.58,3.08472215]
[1771587805623,3.08472215,83.62,83.571,4.76546223]
[1771587806724,3.08472215,83.62,83.57,3.08472215]
[1771587806725,3.08472215,83.62,83.573,4.76546223]
[1771587807222,5.01979051,83.624,83.581,4.76546223]
[1771587807523,10.7665,83.639,83.581,4.76546223]
[1771587807524,3.08472215,83.63,83.581,4.76546223]
[1771587808823,3.08472215,83.63,83.585,4.76546223]
[1771587809325,3.08472215,83.63,83.59,3.08472215]
[1771587809525,5.01979051,83.638,83.594,15.53766223]
[1771587809729,5.01979051,83.638,83.595,4.76546223]
[1771587811030,5.01979051,83.638,83.598,10.7717]
[1771587811934,5.01979051,83.629,83.586,10.7731]
[1771587812133,5.01979051,83.629,83.587,4.76546223]
[1771587812335,5.01979051,83.629,83.58,3.08472215]
[1771587812634,5.01979051,83.629,83.581,4.76546223]
[1771587813734,5.01979051,83.629,83.591,10.7725]
[1771587817933,5.01979051,83.629,83.582,10.7737]
[1771587818540,3.08472215,83.62,83.582,10.7737]
[1771587819036,4.88711159,83.619,83.582,10.7737]
[1771587821232,4.88711159,83.619,83.574,10.7747]
[1771587821740,7.97183374,83.61,83.574,10.7747]
[1771587821935,4.88711159,83.609,83.574,10.7747]
[1771587822743,4.88711159,83.609,83.581,10.7738]
[1771587823140,3.08472215,83.62,83.582,4.74589547]
[1771587823632,3.08472215,83.62,83.586,10.7732]
[1771587823942,4.88711159,83.621,83.586,15.51909547]
[1771587824144,4.88711159,83.621,83.587,4.74589547]
[1771587824338,3.08472215,83.63,83.591,4.74589547]
[1771587824733,4.88711159,83.633,83.591,4.74589547]
[1771587825840,4.88711159,83.633,83.596,10.7719]
[1771587826944,4.88711159,83.633,83.597,4.74589547]
[1771587828340,4.88711159,83.633,83.598,15.51749547]
[1771587829938,4.88711159,83.633,83.601,10.7713]
[1771587830138,4.88711159,83.646,83.602,4.74589547]
[1771587830747,4.88711159,83.646,83.6,3.08472215]
[1771587830748,3.08472215,83.65,83.612,4.74589547]
[1771587831145,4.88711159,83.658,83.612,4.74589547]
[1771587831840,11.03446781,83.699,83.575,21.5492]
[1771587831841,4.88711159,83.67,83.631,4.74589547]
[1771587832242,7.97183374,83.67,83.631,4.74589547]
[1771587834446,4.88711159,83.679,83.632,4.74589547]
[1771587834747,3.08472215,83.67,83.632,4.74589547]
[1771587835745,4.88711159,83.679,83.634,4.74589547]
[1771587836540,10.7616,83.677,83.634,4.74589547]
[1771587836746,4.88711159,83.676,83.634,4.74589547]
[1771587837643,4.88711159,83.676,83.635,10.7669]
[1771587838244,4.88711159,83.688,83.641,4.74589547]
[1771587839750,4.88711159,83.688,83.645,10.7656]
[1771587841651,8.71729166,83.704,83.641,4.74589547]
[1771587841652,3.08472215,83.68,83.641,4.74589547]
[1771587842755,3.08472215,83.68,83.642,10.766]
[1771587842954,3.08472215,83.69,83.65,7.83061762]
[1771587843256,4.88711159,83.689,83.65,4.74589547]
[1771587846556,10.7583,83.702,83.661,4.59083736]
[1771587846760,3.08472215,83.7,83.661,4.59083736]
[1771587846959,4.7216224,83.699,83.661,4.59083736]
[1771587847661,15.4804224,83.698,83.661,4.59083736]
[1771587847863,4.7216224,83.697,83.661,4.59083736]
[1771587851260,3.08517361,83.69,83.661,4.59083736]
[1771587851454,21.5092,83.732,83.595,57.404]
[1771587851455,3.08517361,83.68,83.65,4.78427113]
[1771587857465,4.7216224,83.709,83.67,4.78427113]
[1771587857763,7.80679601,83.69,83.656,4.78427113]
[1771587858268,4.7216224,83.689,83.643,4.78427113]
[1771587858771,4.7216224,83.689,83.65,4.78427113]
[1771587859665,4.7216224,83.689,83.614,21.5393]
[1771587859666,4.7216224,83.689,83.611,35.86]
[1771587859871,4.7216224,83.689,83.55,167.6564]
[1771587859872,3.08517361,83.65,83.612,4.78427113]
[1771587861065,11.95,83.768,83.6,3.08517361]
[1771587861066,3.08517361,83.64,83.6,4.78427113]
[1771587861765,3.08517361,83.63,83.6,4.78427113]
[1771587862671,3.08517361,83.63,83.588,10.7729]
[1771587863365,3.08517361,83.63,83.588,15.55717113]
[1771587864070,4.7216224,83.629,83.56,62.0]
[1771587864273,4.7216224,83.629,83.541,52.01379204]
[1771587864274,4.7216224,83.608,83.55,4.78427113]
[1771587864572,167.4315,83.663,83.541,16.15379204]
[1771587864573,3.08517361,83.58,83.541,16.15379204]
[1771587864772,3.08517361,83.58,83.541,20.93806317]
[1771587865169,3.08517361,83.58,83.542,4.78427113]
[1771587865673,4.7216224,83.589,83.542,4.78427113]
[1771587866169,4.7216224,83.589,83.543,4.78427113]
[1771587866673,11.03446781,83.65,83.541,16.15379204]
[1771587866674,3.08517361,83.6,83.551,4.78427113]
[1771587867068,3.08517361,83.59,83.551,4.78427113]
[1771587867668,10.7693,83.617,83.554,4.78427113]
[1771587867870,4.7216224,83.609,83.561,4.78427113]
[1771587868076,3.08517361,83.6,83.561,4.78427113]
[1771587868677,4.7216224,83.569,83.541,16.15379204]
[1771587868873,3.08517361,83.53,83.464,7.61988219]
[1771587869074,26.94726369,83.592,83.464,7.61988219]
[1771587869271,10.776,83.565,83.491,7.66407879]
[1771587869468,7.35555033,83.59,83.51,3.08517361]
[1771587869678,3.08517361,83.55,83.511,7.66407879]
[1771587869868,167.5131,83.622,83.511,7.66407879]
[1771587869869,9.214883,83.57,83.511,7.66407879]
[1771587870074,9.214883,83.58,83.511,7.66407879]
[1771587870375,7.35555033,83.579,83.511,7.66407879]
[1771587870575,9.214883,83.58,83.511,7.66407879]
[1771587871280,9.214883,83.6,83.481,7.62246654]
[1771587871281,9.214883,83.56,83.481,7.62246654]
[1771587871477,9.214883,83.54,83.481,7.62246654]
[1771587872879,335.2044,83.578,83.463,2.0834144]
[1771587873082,9.214883,83.55,83.425,7.62212952]
[1771587873280,9.214883,83.52,83.441,7.57381583]
[1771587873476,9.214883,83.52,83.44,9.214883]
[1771587873477,10.7818,83.52,83.442,7.57381583]
[1771587873781,9.214883,83.51,83.442,7.57381583]
[1771587874275,10.7818,83.52,83.442,7.57381583]
[1771587874276,7.35555033,83.509,83.442,7.57381583]
[1771587874478,9.214883,83.5,83.442,7.57381583]
[1771587874680,9.214883,83.55,83.424,21.6051649]
[1771587874681,7.35555033,83.499,83.451,7.5734326]
[1771587874876,7.35555033,83.498,83.451,7.5734326]
[1771587875076,2.08438151,83.56,83.451,7.5734326]
[1771587875077,8.13071966,83.519,83.451,7.5734326]
[1771587875284,8.13071966,83.519,83.45,9.214883]
[1771587875285,2.06120908,83.539,83.471,4.78427113]
[1771587876481,2.07796617,83.537,83.471,4.78427113]
[1771587876879,2.07796617,83.537,83.471,15.57227113]
[1771587877186,2.07796617,83.537,83.472,4.9218438]
[1771587878293,9.214883,83.49,83.437,4.9218438]
[1771587878588,2.09467648,83.489,83.424,4.9218438]
[1771587878785,2.09467648,83.508,83.441,4.9218438]
[1771587879086,9.214883,83.51,83.441,4.9218438]
[1771587879585,10.781,83.526,83.419,2.0847249]
[1771587879586,11.28307667,83.52,83.458,4.9218438]
[1771587879885,2.06819367,83.519,83.458,4.9218438]
[1771587880282,2.06819367,83.519,83.46,4.9218438]
[1771587881383,2.06819367,83.519,83.466,4.9218438]
[1771587881794,9.214883,83.49,83.437,10.7924]
[1771587882086,9.214883,83.49,83.419,2.0847249]
[1771587882087,2.39558376,83.489,83.371,4.9218438]
[1771587882286,2.41132729,83.479,83.401,4.9218438]
[1771587882682,2.41132729,83.499,83.421,4.9218438]
[1771587882884,2.41132729,83.487,83.421,4.9218438]
[1771587883386,2.50725848,83.485,83.421,4.9218438]
[1771587883686,9.214883,83.49,83.4,9.214883]
[1771587883687,2.50725848,83.503,83.442,4.9218438]
[1771587883882,2.50725848,83.502,83.442,4.9218438]
[1771587885089,2.50725848,83.502,83.444,4.9218438]
[1771587886489,2.50725848,83.502,83.447,4.9218438]
[1771587886689,2.49162098,83.519,83.447,4.9218438]
[1771587887785,2.49162098,83.519,83.454,4.9218438]
[1771587888293,2.58802062,83.499,83.411,4.9218438]
[1771587888488,9.214883,83.5,83.411,4.9218438]
[1771587888489,2.58802062,83.479,83.411,4.9218438]
[1771587888791,10.7893,83.462,83.411,4.9218438]
[1771587889188,2.58802062,83.479,83.411,4.9218438]
[1771587890192,2.74991002,83.471,83.411,4.9218438]
[1771587890790,2.74991002,83.471,83.413,4.9218438]
[1771587891588,2.60660766,83.468,83.413,4.9218438]
[1771587891986,2.60660766,83.449,83.391,4.9218438]
[1771587892189,2.60660766,83.449,83.321,11.79165924]
[1771587892190,2.60660766,83.449,83.393,4.9218438]
[1771587893190,2.60660766,83.449,83.394,10.7979]
[1771587893584,2.60660766,83.449,83.394,15.7197438]
[1771587893788,2.60660766,83.449,83.396,15.7195438]
[1771587893984,9.214883,83.47,83.39,9.214883]
[1771587893985,2.58810018,83.467,83.397,4.9218438]
[1771587894592,2.60179122,83.465,83.397,4.9218438]
[1771587895196,2.60179122,83.465,83.39,9.214883]
[1771587895197,2.60179122,83.465,83.409,4.9218438]
[1771587895693,9.214883,83.47,83.409,4.9218438]
[1771587895694,2.49909779,83.46,83.409,4.9218438]
[1771587895998,2.49909779,83.46,83.393,10.7981]
[1771587896393,2.49909779,83.46,83.394,4.9218438]
[1771587896792,2.51231729,83.456,83.399,10.7973]
[1771587896999,2.51231729,83.456,83.4,4.9218438]
[1771587897196,2.51231729,83.456,83.38,9.214883]
[1771587897197,2.51231729,83.449,83.397,4.9218438]
[1771587897996,2.53909733,83.459,83.397,4.9218438]
[1771587898999,2.53909733,83.459,83.401,4.9218438]
[1771587899801,10.7886,83.467,83.408,4.9218438]
[1771587900204,2.43035192,83.458,83.408,4.9218438]
[1771587900602,2.44286493,83.454,83.393,4.9218438]
[1771587900802,2.44286493,83.454,83.343,21.6091]
[1771587900803,2.44286493,83.439,83.364,4.9218438]
[1771587901096,10.7929,83.435,83.364,4.9218438]
[1771587901296,2.44286493,83.434,83.376,10.8002]
[1771587901506,2.39485917,83.429,83.364,4.9218438]
[1771587902000,2.39485917,83.429,83.366,4.9218438]
[1771587902501,2.40704167,83.423,83.369,4.9218438]
[1771587903204,10.7944,83.422,83.37,15.7229438]
[1771587903603,2.31453859,83.42,83.37,4.9218438]
[1771587904198,10.7963,83.408,83.37,4.9218438]
[1771587904399,10.7963,83.408,83.356,4.90792577]
[1771587904901,9.214883,83.43,83.362,4.90792577]
[1771587905404,11.77876519,83.43,83.362,4.90792577]
[1771587905805,2.56388219,83.444,83.376,4.90792577]
[1771587906203,2.56388219,83.444,83.381,4.90792577]
[1771587906406,2.57548493,83.466,83.41,4.90792577]
[1771587906901,10.7909,83.45,83.41,4.90792577]
[1771587908103,10.7896,83.46,83.41,4.90792577]
[1771587908298,2.67605709,83.459,83.41,4.90792577]
[1771587908907,2.68737054,83.474,83.415,4.97233151]
[1771587909609,2.65046879,83.472,83.416,4.97233151]
[1771587910006,9.214883,83.5,83.416,4.97233151]
[1771587910007,10.7893,83.462,83.416,4.97233151]
[1771587910309,2.65046879,83.462,83.391,4.97233151]
[1771587910706,10.7904,83.453,83.397,4.97233151]
[1771587911106,2.65046879,83.462,83.397,4.97233151]
[1771587911807,2.65046879,83.462,83.419,10.7947]
[1771587911998,2.65046879,83.462,83.416,4.97233151]
[1771587913908,9.23671646,83.49,83.416,4.97233151]
[1771587914214,2.66255577,83.489,83.416,4.97233151]
[1771587914415,2.66255577,83.489,83.429,4.97233151]
[1771587915015,10.7877,83.475,83.429,4.97233151]
[1771587915715,13.40660627,83.47,83.429,4.97233151]
[1771587915915,13.40660627,83.47,83.415,15.76763151]
[1771587916106,10.7889,83.465,83.415,15.76763151]
[1771587916509,10.791,83.449,83.399,4.97233151]
[1771587917514,2.62541992,83.465,83.403,4.97233151]
[1771587917515,10.7898,83.458,83.403,4.97233151]
[1771587917813,13.47052382,83.458,83.403,4.97233151]
[1771587918010,2.68072382,83.457,83.403,4.97233151]
[1771587918210,10.7905,83.453,83.403,4.97233151]
[1771587919006,10.8871663,83.497,83.362,21.6043]
[1771587919007,10.788,83.472,83.421,10.7945]
[1771587919212,2.68769009,83.473,83.421,4.97233151]
[1771587919716,2.72915936,83.471,83.421,4.97233151]
[1771587920214,10.7869,83.48,83.43,10.7933]
[1771587920416,10.7869,83.48,83.431,4.97233151]
[1771587921217,10.7878,83.474,83.431,4.97233151]
[1771587922122,2.73596971,83.479,83.431,4.97233151]
[1771587922319,2.73596971,83.479,83.394,4.97233151]
[1771587922517,2.59004467,83.459,83.394,4.97233151]
[1771587922718,2.59004467,83.459,83.405,4.97233151]
[1771587922918,253.00394952,83.499,83.405,4.97233151]
[1771587922919,2.59004467,83.479,83.405,4.97233151]
[1771587923819,13.44964591,83.475,83.416,4.97233151]
[1771587924821,13.44964591,83.475,83.418,4.97233151]
[1771587926120,13.44964591,83.475,83.425,4.97233151]
[1771587926121,2.66194591,83.475,83.425,4.97233151]
[1771587926323,10.7864,83.484,83.425,4.97233151]
[1771587926524,2.97176259,83.49,83.425,4.97233151]
[1771587926722,253.00394952,83.499,83.452,4.97233151]
[1771587928323,2.96364006,83.529,83.465,4.97233151]
[1771587929926,10.8871663,83.554,83.465,10.7888]
[1771587929927,36.46880821,83.523,83.465,10.7888]
[1771587930317,36.46880821,83.523,83.473,10.7877]
[1771587932822,45.7124508,83.54,83.483,10.7865]
[1771587933221,36.47573434,83.539,83.483,10.7865]
[1771587933617,9.23671646,83.54,83.483,10.7865]
[1771587933618,36.45049261,83.537,83.483,10.7865]
[1771587934824,36.45223494,83.531,83.483,10.7865]
[1771587936022,5.08484532,83.489,83.417,4.97233151]
[1771587937433,5.08484532,83.489,83.428,5.16160962]
[1771587938126,5.65478177,83.486,83.428,5.16160962]
[1771587939624,9.23671646,83.5,83.4,62.0]
[1771587939625,5.65478177,83.499,83.434,5.16160962]
[1771587940135,5.65478177,83.497,83.437,5.16160962]
[1771587942322,16.43808177,83.508,83.437,5.16160962]
[1771587942526,5.65478177,83.507,83.437,5.16160962]
[1771587943731,5.65478177,83.507,83.451,5.16160962]
[1771587943933,16.43838177,83.506,83.451,5.16160962]
[1771587944136,5.65478177,83.506,83.451,5.16160962]
[1771587944336,5.65478177,83.506,83.453,5.16160962]
[1771587944933,5.65478177,83.506,83.455,5.16160962]
[1771587945233,16.43698177,83.517,83.455,5.16160962]
[1771587946032,9.23671646,83.53,83.45,9.23671646]
[1771587946033,10.7827,83.513,83.458,5.16160962]
[1771587946236,5.65478177,83.509,83.441,5.16160962]
[1771587947840,5.65478177,83.504,83.447,10.7911]
[1771587948834,5.65478177,83.504,83.451,10.7906]
[1771587949232,5.65478177,83.504,83.451,15.95220962]
[1771587950940,9.23671646,83.51,83.451,15.95220962]
[1771587950941,5.65478177,83.502,83.451,15.95220962]
[1771587951538,5.65478177,83.502,83.452,5.16160962]
[1771587952742,10.7846,83.498,83.452,5.16160962]
[1771587953839,5.65478177,83.497,83.452,5.16160962]
[1771587956735,10.7851,83.495,83.452,5.16160962]
[1771587957939,5.65478177,83.497,83.454,5.16160962]
[1771587959241,5.65478177,83.497,83.456,10.79]
[1771587960345,5.65478177,83.512,83.465,5.16160962]
[1771587961046,10.783,83.511,83.467,5.16160962]
[1771587961545,10.783,83.511,83.423,35.86]
[1771587961546,5.65478177,83.501,83.451,5.16160962]
[1771587962049,5.65478177,83.501,83.4,71.23671646]
[1771587962050,5.65478177,83.501,83.421,5.16160962]
[1771587963546,10.7858,83.489,83.448,10.791]
[1771587963943,5.65478177,83.485,83.44,15.95360962]
[1771587965845,10.7865,83.483,83.44,15.95360962]
[1771587966043,5.65478177,83.485,83.429,5.86643845]
[1771587967649,10.7865,83.484,83.44,5.49229861]
[1771587968351,10.7865,83.484,83.446,5.49229861]
[1771587968953,16.71496066,83.492,83.449,5.49229861]
[1771587970655,16.71496066,83.492,83.449,16.28309861]
[1771587973959,3.10076583,83.49,83.449,16.28309861]
[1771587974354,3.10076583,83.49,83.45,5.49229861]
[1771587974549,10.7854,83.492,83.452,5.49229861]
[1771587974752,10.7847,83.498,83.452,5.49229861]
[1771587975154,5.92956066,83.497,83.452,5.49229861]
[1771587975447,5.92956066,83.497,83.458,10.7896]
[1771587975653,5.92956066,83.497,83.452,5.49229861]
[1771587976654,5.92956066,83.497,83.371,29.71830121]
[1771587976655,3.10076583,83.51,83.461,5.49229861]
[1771587976857,5.92956066,83.514,83.471,5.49229861]
[1771587978859,3.10076583,83.52,83.48,3.10076583]
[1771587979055,3.10076583,83.51,83.469,5.49229861]
[1771587979859,5.92956066,83.509,83.469,5.49229861]
[1771587980061,5.92956066,83.509,83.457,5.49229861]
[1771587980262,5.92956066,83.499,83.457,5.49229861]
[1771587980462,3.10076583,83.49,83.441,5.49229861]
[1771587980955,5.92956066,83.499,83.441,5.49229861]
[1771587980956,5.92956066,83.499,83.45,3.10076583]
[1771587982164,5.92956066,83.499,83.46,8.59306444]
[1771587982364,14.59099496,83.544,83.394,178.56428937]
[1771587982365,5.92956066,83.519,83.471,5.49229861]
[1771587982556,5.92956066,83.519,83.416,22.32754492]
[1771587982557,5.92956066,83.499,83.456,5.49229861]
[1771587982753,5.92956066,83.499,83.45,3.10076583]
[1771587983059,5.92956066,83.489,83.442,5.49229861]
[1771587986765,5.92956066,83.489,83.45,3.10076583]
[1771587987065,5.92956066,83.489,83.451,5.49229861]
[1771587987666,5.92956066,83.502,83.46,3.10076583]
[1771587987871,5.92956066,83.502,83.461,5.49229861]
[1771587988164,5.92956066,83.502,83.398,29.71830121]
[1771587988165,8.64122897,83.53,83.49,3.10076583]
[1771587988371,8.64122897,83.529,83.49,3.10076583]
[1771587988568,3.10076583,83.53,83.49,3.10076583]
[1771587990970,3.10076583,83.53,83.49,8.59306444]
[1771587991169,5.92956066,83.532,83.49,8.59306444]
[1771587991464,5.92956066,83.529,83.49,5.49229861]
[1771587991670,3.10076583,83.52,83.476,5.49229861]
[1771587991871,5.92956066,83.529,83.48,3.10076583]
[1771587992072,5.92956066,83.519,83.476,5.49229861]
[1771587992269,5.92956066,83.519,83.47,3.10076583]
[1771587992466,5.92956066,83.519,83.47,8.59306444]
[1771587994371,5.92956066,83.519,83.471,5.49229861]
[1771587998576,5.92956066,83.519,83.48,3.10076583]
[1771587999177,5.92956066,83.519,83.471,5.49229861]
[1771587999877,5.9617488,83.509,83.46,8.7224567]
[1771588000074,5.9617488,83.509,83.461,5.62169087]
[1771588001672,3.10076583,83.52,83.471,5.62169087]
[1771588003376,5.9617488,83.523,83.48,3.10076583]
[1771588003572,3.10076583,83.52,83.471,5.62169087]
[1771588004471,5.9617488,83.523,83.471,5.62169087]
[1771588005184,3.10076583,83.52,83.471,5.62169087]
[1771588006081,5.9617488,83.527,83.481,5.62169087]
[1771588007186,3.10076583,83.53,83.481,5.62169087]
[1771588008277,3.10076583,83.53,83.491,5.62169087]
[1771588008478,5.9617488,83.54,83.491,5.62169087]
[1771588008479,5.9617488,83.539,83.491,5.62169087]
[1771588008975,3.10076583,83.53,83.491,5.62169087]
[1771588009886,9.06251463,83.53,83.491,5.62169087]
[1771588010184,5.9617488,83.529,83.491,5.62169087]
[1771588010777,5.9617488,83.529,83.48,3.10076583]
[1771588010778,3.10076583,83.52,83.481,5.62169087]